Workbook

Sheet Arkusz1
C1: Rodzaj zdarzenia
C2: Ogółem zdarzeń | E2: Pożary | G2: Miejscowe zagrożenia | I2: Alarmy fałszywe
C3: rok | E3: rok | G3: rok | I3: rok
A4: LP. | B4: Podział administracyjny | C4: 2022 | D4: 2023 | E4: 2022 | F4: 2023 | G4: 2022 | H4: 2023 | I4: 2022 | J4: 2023
A5: 1 | B5: KUJAWSKO-POMORSKIE | C5: 37660 | D5: 28780 | E5: 6478 | F5: 5593 | G5: 28605 | H5: 20893 | I5: 2577 | J5: 2294
A6: 2 | B6: aleksandrowski | C6: 1193 | D6: 730 | E6: 173 | F6: 189 | G6: 899 | H6: 474 | I6: 121 | J6: 67
A7: 12 | B7: brodnicki | C7: 1534 | D7: 1065 | E7: 250 | F7: 176 | G7: 1205 | H7: 816 | I7: 79 | J7: 73
A8: 23 | B8: bydgoski | C8: 2216 | D8: 1574 | E8: 426 | F8: 353 | G8: 1732 | H8: 1153 | I8: 58 | J8: 68
A9: 32 | B9: Bydgoszcz | C9: 3495 | D9: 2664 | E9: 663 | F9: 597 | G9: 2386 | H9: 1655 | I9: 446 | J9: 412
A10: 34 | B10: chełmiński | C10: 1212 | D10: 801 | E10: 181 | F10: 132 | G10: 1000 | H10: 630 | I10: 31 | J10: 39
A11: 42 | B11: golubsko-dobrzyński | C11: 1059 | D11: 788 | E11: 155 | F11: 131 | G11: 877 | H11: 626 | I11: 27 | J11: 31
A12: 49 | B12: Grudziądz | C12: 1403 | D12: 1271 | E12: 227 | F12: 212 | G12: 1027 | H12: 907 | I12: 149 | J12: 152
A13: 51 | B13: grudziądzki | C13: 1415 | D13: 1036 | E13: 191 | F13: 138 | G13: 1200 | H13: 878 | I13: 24 | J13: 20
A14: 58 | B14: inowrocławski | C14: 2606 | D14: 1822 | E14: 451 | F14: 390 | G14: 1982 | H14: 1269 | I14: 173 | J14: 163
A15: 68 | B15: lipnowski | C15: 1301 | D15: 1137 | E15: 309 | F15: 245 | G15: 956 | H15: 857 | I15: 36 | J15: 35
A16: 78 | B16: mogileński | C16: 1114 | D16: 832 | E16: 118 | F16: 141 | G16: 960 | H16: 646 | I16: 36 | J16: 45
A17: 83 | B17: nakielski | C17: 1608 | D17: 1347 | E17: 273 | F17: 233 | G17: 1276 | H17: 1049 | I17: 59 | J17: 65
A18: 89 | B18: radziejowski | C18: 1015 | D18: 908 | E18: 133 | F18: 129 | G18: 834 | H18: 725 | I18: 48 | J18: 54
A19: 97 | B19: rypiński | C19: 940 | D19: 853 | E19: 151 | F19: 125 | G19: 752 | H19: 684 | I19: 37 | J19: 44
A20: 104 | B20: sępoleński | C20: 937 | D20: 729 | E20: 117 | F20: 101 | G20: 803 | H20: 604 | I20: 17 | J20: 24
A21: 109 | B21: świecki | C21: 1869 | D21: 1403 | E21: 423 | F21: 366 | G21: 1369 | H21: 961 | I21: 77 | J21: 76
A22: 121 | B22: Toruń | C22: 2701 | D22: 2019 | E22: 607 | F22: 479 | G22: 1571 | H22: 1112 | I22: 523 | J22: 428
A23: 123 | B23: toruński | C23: 2558 | D23: 1986 | E23: 423 | F23: 435 | G23: 1991 | H23: 1455 | I23: 144 | J23: 96
A24: 133 | B24: tucholski | C24: 1247 | D24: 991 | E24: 156 | F24: 130 | G24: 1028 | H24: 832 | I24: 63 | J24: 29
A25: 140 | B25: wąbrzeski | C25: 947 | D25: 683 | E25: 123 | F25: 101 | G25: 797 | H25: 552 | I25: 27 | J25: 30
A26: 146 | B26: Włocławek | C26: 1377 | D26: 1189 | E26: 318 | F26: 268 | G26: 889 | H26: 741 | I26: 170 | J26: 180
A27: 148 | B27: włocławski | C27: 2098 | D27: 1578 | E27: 379 | F27: 342 | G27: 1622 | H27: 1168 | I27: 97 | J27: 68
A28: 162 | B28: żniński | C28: 1815 | D28: 1374 | E28: 231 | F28: 180 | G28: 1449 | H28: 1099 | I28: 135 | J28: 95

Sheet 1a. Zdarzenia wg rodzaju %
B1: LP. | C1: Podział administracyjny | D1: Ogółem zdarzeń | F1: Pożary | H1: Miejscowe zagrożenia | J1: Alarmy fałszywe
D2: interwencji | E2: % | F2: interwencji | G2: % | H2: interwencji | I2: % | J2: interwencji | K2: %
B3: 1. | C3: KUIAWSKO-POMORSKIE | D3: =SUM(D4:D22) -> 0 | E3: 1 | F3: =SUM(F4:F22) -> 67300 | G3: 1 | H3: =SUM(H4:H22) -> 37962 | I3: 1 | J3: =SUM(J4:J22) -> 0 | K3: 1
B4: 2. | C4: aleksandrowski | D4: =Arkusz1!R5 -> 0 | E4: =SUM(D4/$D$3) ->  | F4: =Arkusz1!C5 -> 37660 | G4: =SUM(F4/$F$3) -> 0.5595839525 | H4: =Arkusz1!H5 -> 20893 | I4: =SUM(H4/$H$3) -> 0.5503661556 | J4: =Arkusz1!N5 -> 0 | K4: =SUM(J4/$J$3) -> 
B5: 3. | C5: brodnicki | D5: =Arkusz1!R6 -> 0 | E5: =SUM(D5/$D$3) ->  | F5: =Arkusz1!C6 -> 1193 | G5: =SUM(F5/$F$3) -> 0.01772659733 | H5: =Arkusz1!H6 -> 474 | I5: =SUM(H5/$H$3) -> 0.01248617038 | J5: =Arkusz1!N6 -> 0 | K5: =SUM(J5/$J$3) -> 
B6: 4. | C6: bydgoski | D6: =Arkusz1!R7 -> 0 | E6: =SUM(D6/$D$3) ->  | F6: =Arkusz1!C7 -> 1534 | G6: 0.02279346211 | H6: =Arkusz1!H7 -> 816 | I6: 0.02149517939 | J6: =Arkusz1!N7 -> 0
B7: 5. | C7: chełmiński | D7: =Arkusz1!R8 -> 0 | F7: =Arkusz1!C8 -> 2216 | G7: 0.03292719168 | H7: =Arkusz1!H8 -> 1153 | I7: 0.03037247774 | J7: =Arkusz1!N8 -> 0
B8: 6. | C8: golubsko-dobrzyński | D8: =Arkusz1!R9 -> 0 | F8: =Arkusz1!C9 -> 3495 | G8: 0.05193164933 | H8: =Arkusz1!H9 -> 1655 | I8: 0.04359622781 | J8: =Arkusz1!N9 -> 0
B9: 7. | C9: grudziądzki | D9: =Arkusz1!R10 -> 0 | F9: =Arkusz1!C10 -> 1212 | G9: 0.0180089153 | H9: =Arkusz1!H10 -> 630 | I9: 0.01659554291 | J9: =Arkusz1!N10 -> 0
B10: 8. | C10: inowrocławski | D10: =Arkusz1!R11 -> 0 | F10: =Arkusz1!C11 -> 1059 | G10: 0.01573551263 | H10: =Arkusz1!H11 -> 626 | I10: 0.01649017438 | J10: =Arkusz1!N11 -> 0
B11: 9. | C11: lipnowski | D11: =Arkusz1!R12 -> 0 | F11: =Arkusz1!C12 -> 1403 | G11: 0.02084695394 | H11: =Arkusz1!H12 -> 907 | I11: 0.02389231337 | J11: =Arkusz1!N12 -> 0
B12: 10. | C12: mogileński | D12: =Arkusz1!R13 -> 0 | F12: =Arkusz1!C13 -> 1415 | G12: 0.02102526003 | H12: =Arkusz1!H13 -> 878 | I12: 0.02312839155 | J12: =Arkusz1!N13 -> 0
B13: 11. | C13: nakielski | D13: =Arkusz1!R14 -> 0 | F13: =Arkusz1!C14 -> 2606 | G13: 0.03872213967 | H13: =Arkusz1!H14 -> 1269 | I13: 0.03342816501 | J13: =Arkusz1!N14 -> 0
B14: 12. | C14: radziejowski | D14: =Arkusz1!R15 -> 0 | F14: =Arkusz1!C15 -> 1301 | G14: 0.01933135215 | H14: =Arkusz1!H15 -> 857 | I14: 0.02257520679 | J14: =Arkusz1!N15 -> 0
B15: 13. | C15: rypiński | D15: =Arkusz1!R16 -> 0 | F15: =Arkusz1!C16 -> 1114 | G15: 0.01655274889 | H15: =Arkusz1!H16 -> 646 | I15: 0.01701701702 | J15: =Arkusz1!N16 -> 0
B16: 14. | C16: sępoleński | D16: =Arkusz1!R17 -> 0 | F16: =Arkusz1!C17 -> 1608 | G16: 0.02389301634 | H16: =Arkusz1!H17 -> 1049 | I16: 0.02763289605 | J16: =Arkusz1!N17 -> 0
B17: 15. | C17: świecki | D17: =Arkusz1!R18 -> 0 | F17: =Arkusz1!C18 -> 1015 | G17: 0.01508172363 | H17: =Arkusz1!H18 -> 725 | I17: 0.01909804541 | J17: =Arkusz1!N18 -> 0
B18: 16. | C18: toruński | D18: =Arkusz1!R4 -> 0 | F18: =Arkusz1!C4 -> 2022 | G18: 0.03004457652 | H18: =Arkusz1!H4 -> 2023 | I18: 0.05329013224 | J18: =Arkusz1!N4 -> 0
B19: 17. | C19: tucholski | D19: =Arkusz1!R$19 -> 0 | F19: =Arkusz1!C19 -> 940 | G19: 0.01396731055 | H19: =Arkusz1!H19 -> 684 | I19: 0.01801801802 | J19: =Arkusz1!N19 -> 0
B20: 18. | C20: wąbrzeski | D20: =Arkusz1!R20 -> 0 | F20: =Arkusz1!C20 -> 937 | G20: 0.01392273403 | H20: =Arkusz1!H20 -> 604 | I20: 0.01591064749 | J20: =Arkusz1!N20 -> 0
B21: 19. | C21: włocławski | D21: =Arkusz1!R21 -> 0 | F21: =Arkusz1!C21 -> 1869 | G21: 0.02777117385 | H21: =Arkusz1!H21 -> 961 | I21: 0.02531478847 | J21: =Arkusz1!N21 -> 0
B22: 20. | C22: żniński | D22: =Arkusz1!R22 -> 0 | E22: =SUM(D22/D3) ->  | F22: =Arkusz1!C22 -> 2701 | G22: =SUM(F22/F3) -> 0.04013372957 | H22: =Arkusz1!H22 -> 1112 | I22: =SUM(H22/H3) -> 0.02929245035 | J22: =Arkusz1!N22 -> 0 | K22: =SUM(J22/J3) -> 
C24: Sporządził: | D24: =INDEX(SKKW!A1:A9,SKKW!B1,1) -> st. kpt. Krzysztof Kuczborski
C25: Za okres: | D25: 2023-01-01T11:03:00

Sheet C. Informacja o działaniach SP
A18: Liczba interwencji straży pożarnych w woj. kujawsko-pomorskim w 2023 r. - podział na powiaty
A21: LP. | B21: Podział administracyjny | C21: Ogółem zdarzeń | G21: Pożary | K21: Miejscowe zagrożenia | O21: Alarmy fałszywe
C22: =Arkusz1!$I$4 -> 2022 | D22: =Arkusz1!$J$4 -> 2023 | E22: Różnica | F22: % | G22: =Arkusz1!$I$4 -> 2022 | H22: =Arkusz1!$J$4 -> 2023 | I22: Różnica | J22: % | K22: =Arkusz1!$I$4 -> 2022 | L22: =Arkusz1!$J$4 -> 2023 | M22: Różnica | N22: % | O22: =Arkusz1!$I$4 -> 2022 | P22: =Arkusz1!$J$4 -> 2023 | Q22: Różnica | R22: %
A23: 1. | B23: KUJAWSKO-POMORSKIE | C23: =SUM(C24:C42) -> 37660 | D23: =SUM(D24:D42) -> 28780 | E23: =SUM(D23-C23) -> -8880 | F23: =SUM(D23-C23)/C23 -> -0.2357939458 | G23: =SUM(G24:G42) -> 6478 | H23: =SUM(H24:H42) -> 5593 | I23: =SUM(H23-G23) -> -885 | J23: =SUM(H23-G23)/G23 -> -0.1366162396 | K23: =SUM(K24:K42) -> 28605 | L23: =SUM(L24:L42) -> 20893 | M23: =SUM(L23-K23) -> -7712 | N23: =SUM(L23-K23)/K23 -> -0.2696032162 | O23: =SUM(O24:O42) -> 2577 | P23: =SUM(P24:P42) -> 2294 | Q23: =SUM(P23-O23) -> -283 | R23: =SUM(P23-O23)/O23 -> -0.1098176174
A24: 2. | B24: aleksandrowski | C24: =Arkusz1!C6 -> 1193 | D24: =Arkusz1!D6 -> 730 | E24: =SUM(D24-C24) -> -463 | F24: =SUM(D24-C24)/C24 -> -0.3880972339 | G24: =Arkusz1!E6 -> 173 | H24: =Arkusz1!F6 -> 189 | I24: =SUM(H24-G24) -> 16 | J24: =SUM(H24-G24)/G24 -> 0.09248554913 | K24: =Arkusz1!G6 -> 899 | L24: =Arkusz1!H6 -> 474 | M24: =SUM(L24-K24) -> -425 | N24: =SUM(L24-K24)/K24 -> -0.4727474972 | O24: =Arkusz1!I6 -> 121 | P24: =Arkusz1!J6 -> 67 | Q24: =SUM(P24-O24) -> -54 | R24: =SUM(P24-O24)/O24 -> -0.4462809917
A25: 3. | B25: brodnicki | C25: =Arkusz1!C7 -> 1534 | D25: =Arkusz1!D7 -> 1065 | E25: -469 | F25: -0.3057366362 | G25: =Arkusz1!E7 -> 250 | H25: =Arkusz1!F7 -> 176 | I25: -74 | J25: -0.296 | K25: =Arkusz1!G7 -> 1205 | L25: =Arkusz1!H7 -> 816 | M25: -389 | N25: -0.3228215768 | O25: =Arkusz1!I7 -> 79 | P25: =Arkusz1!J7 -> 73 | Q25: -6 | R25: -0.07594936709
A26: 4. | B26: bydgoski | C26: =Arkusz1!C8+Arkusz1!C9 -> 5711 | D26: =Arkusz1!D8+Arkusz1!D9 -> 4238 | E26: -1473 | F26: -0.2579233059 | G26: =Arkusz1!E8+Arkusz1!E9 -> 1089 | H26: =Arkusz1!F8+Arkusz1!F9 -> 950 | I26: -139 | J26: -0.1276400367 | K26: =Arkusz1!G8+Arkusz1!G9 -> 4118 | L26: =Arkusz1!H8+Arkusz1!H9 -> 2808 | M26: -1310 | N26: -0.3181155901 | O26: =Arkusz1!I8+Arkusz1!I9 -> 504 | P26: =Arkusz1!J8+Arkusz1!J9 -> 480 | Q26: -24 | R26: -0.04761904762
A27: 5. | B27: chełmiński | C27: =Arkusz1!C10 -> 1212 | D27: =Arkusz1!D10 -> 801 | E27: -411 | F27: -0.3391089109 | G27: =Arkusz1!E10 -> 181 | H27: =Arkusz1!F10 -> 132 | I27: -49 | J27: -0.270718232 | K27: =Arkusz1!G10 -> 1000 | L27: =Arkusz1!H10 -> 630 | M27: -370 | N27: -0.37 | O27: =Arkusz1!I10 -> 31 | P27: =Arkusz1!J10 -> 39 | Q27: 8 | R27: 0.2580645161
A28: 6. | B28: golubsko-dobrzyński | C28: =Arkusz1!C11 -> 1059 | D28: =Arkusz1!D11 -> 788 | E28: -271 | F28: -0.2559017941 | G28: =Arkusz1!E11 -> 155 | H28: =Arkusz1!F11 -> 131 | I28: -24 | J28: -0.1548387097 | K28: =Arkusz1!G11 -> 877 | L28: =Arkusz1!H11 -> 626 | M28: -251 | N28: -0.2862029647 | O28: =Arkusz1!I11 -> 27 | P28: =Arkusz1!J11 -> 31 | Q28: 4 | R28: 0.1481481481
A29: 7. | B29: grudziądzki | C29: =Arkusz1!C12+Arkusz1!C13 -> 2818 | D29: =Arkusz1!D12+Arkusz1!D13 -> 2307 | E29: -511 | F29: -0.1813342796 | G29: =Arkusz1!E12+Arkusz1!E13 -> 418 | H29: =Arkusz1!F12+Arkusz1!F13 -> 350 | I29: -68 | J29: -0.1626794258 | K29: =Arkusz1!G12+Arkusz1!G13 -> 2227 | L29: =Arkusz1!H12+Arkusz1!H13 -> 1785 | M29: -442 | N29: -0.1984732824 | O29: =Arkusz1!I12+Arkusz1!I13 -> 173 | P29: =Arkusz1!J12+Arkusz1!J13 -> 172 | Q29: -1 | R29: -0.005780346821
A30: 8. | B30: inowrocławski | C30: =Arkusz1!C14 -> 2606 | D30: =Arkusz1!D14 -> 1822 | E30: -784 | F30: -0.3008442057 | G30: =Arkusz1!E14 -> 451 | H30: =Arkusz1!F14 -> 390 | I30: -61 | J30: -0.1352549889 | K30: =Arkusz1!G14 -> 1982 | L30: =Arkusz1!H14 -> 1269 | M30: -713 | N30: -0.3597376387 | O30: =Arkusz1!I14 -> 173 | P30: =Arkusz1!J14 -> 163 | Q30: -10 | R30: -0.05780346821
A31: 9. | B31: lipnowski | C31: =Arkusz1!C15 -> 1301 | D31: =Arkusz1!D15 -> 1137 | E31: -164 | F31: -0.1260568793 | G31: =Arkusz1!E15 -> 309 | H31: =Arkusz1!F15 -> 245 | I31: -64 | J31: -0.2071197411 | K31: =Arkusz1!G15 -> 956 | L31: =Arkusz1!H15 -> 857 | M31: -99 | N31: -0.1035564854 | O31: =Arkusz1!I15 -> 36 | P31: =Arkusz1!J15 -> 35 | Q31: -1 | R31: -0.02777777778
A32: 10. | B32: mogileński | C32: =Arkusz1!C16 -> 1114 | D32: =Arkusz1!D16 -> 832 | E32: -282 | F32: -0.2531418312 | G32: =Arkusz1!E16 -> 118 | H32: =Arkusz1!F16 -> 141 | I32: 23 | J32: 0.1949152542 | K32: =Arkusz1!G16 -> 960 | L32: =Arkusz1!H16 -> 646 | M32: -314 | N32: -0.3270833333 | O32: =Arkusz1!I16 -> 36 | P32: =Arkusz1!J16 -> 45 | Q32: 9 | R32: 0.25
A33: 11. | B33: nakielski | C33: =Arkusz1!C17 -> 1608 | D33: =Arkusz1!D17 -> 1347 | E33: -261 | F33: -0.1623134328 | G33: =Arkusz1!E17 -> 273 | H33: =Arkusz1!F17 -> 233 | I33: -40 | J33: -0.1465201465 | K33: =Arkusz1!G17 -> 1276 | L33: =Arkusz1!H17 -> 1049 | M33: -227 | N33: -0.1778996865 | O33: =Arkusz1!I17 -> 59 | P33: =Arkusz1!J17 -> 65 | Q33: 6 | R33: 0.1016949153
A34: 12. | B34: radziejowski | C34: =Arkusz1!C18 -> 1015 | D34: =Arkusz1!D18 -> 908 | E34: -107 | F34: -0.1054187192 | G34: =Arkusz1!E18 -> 133 | H34: =Arkusz1!F18 -> 129 | I34: -4 | J34: -0.03007518797 | K34: =Arkusz1!G18 -> 834 | L34: =Arkusz1!H18 -> 725 | M34: -109 | N34: -0.1306954436 | O34: =Arkusz1!I18 -> 48 | P34: =Arkusz1!J18 -> 54 | Q34: 6 | R34: 0.125
A35: 13. | B35: rypiński | C35: =Arkusz1!C19 -> 940 | D35: =Arkusz1!D19 -> 853 | E35: -87 | F35: -0.09255319149 | G35: =Arkusz1!E19 -> 151 | H35: =Arkusz1!F19 -> 125 | I35: -26 | J35: -0.1721854305 | K35: =Arkusz1!G19 -> 752 | L35: =Arkusz1!H19 -> 684 | M35: -68 | N35: -0.09042553191 | O35: =Arkusz1!I19 -> 37 | P35: =Arkusz1!J19 -> 44 | Q35: 7 | R35: 0.1891891892
A36: 14. | B36: sępoleński | C36: =Arkusz1!C20 -> 937 | D36: =Arkusz1!D20 -> 729 | E36: -208 | F36: -0.2219850587 | G36: =Arkusz1!E20 -> 117 | H36: =Arkusz1!F20 -> 101 | I36: -16 | J36: -0.1367521368 | K36: =Arkusz1!G20 -> 803 | L36: =Arkusz1!H20 -> 604 | M36: -199 | N36: -0.2478206725 | O36: =Arkusz1!I20 -> 17 | P36: =Arkusz1!J20 -> 24 | Q36: 7 | R36: 0.4117647059
A37: 15. | B37: świecki | C37: =Arkusz1!C21 -> 1869 | D37: =Arkusz1!D21 -> 1403 | E37: -466 | F37: -0.2493311932 | G37: =Arkusz1!E21 -> 423 | H37: =Arkusz1!F21 -> 366 | I37: -57 | J37: -0.134751773 | K37: =Arkusz1!G21 -> 1369 | L37: =Arkusz1!H21 -> 961 | M37: -408 | N37: -0.2980277575 | O37: =Arkusz1!I21 -> 77 | P37: =Arkusz1!J21 -> 76 | Q37: -1 | R37: -0.01298701299
A38: 16. | B38: toruński | C38: =Arkusz1!C22+Arkusz1!C23 -> 5259 | D38: =Arkusz1!D22+Arkusz1!D23 -> 4005 | E38: -1254 | F38: -0.2384483742 | G38: =Arkusz1!E22+Arkusz1!E23 -> 1030 | H38: =Arkusz1!F22+Arkusz1!F23 -> 914 | I38: -116 | J38: -0.1126213592 | K38: =Arkusz1!G22+Arkusz1!G23 -> 3562 | L38: =Arkusz1!H22+Arkusz1!H23 -> 2567 | M38: -995 | N38: -0.2793374509 | O38: =Arkusz1!I22+Arkusz1!I23 -> 667 | P38: =Arkusz1!J22+Arkusz1!J23 -> 524 | Q38: -143 | R38: -0.2143928036
A39: 17. | B39: tucholski | C39: =Arkusz1!C24 -> 1247 | D39: =Arkusz1!D24 -> 991 | E39: -256 | F39: -0.2052927025 | G39: =Arkusz1!E24 -> 156 | H39: =Arkusz1!F24 -> 130 | I39: -26 | J39: -0.1666666667 | K39: =Arkusz1!G24 -> 1028 | L39: =Arkusz1!H24 -> 832 | M39: -196 | N39: -0.1906614786 | O39: =Arkusz1!I24 -> 63 | P39: =Arkusz1!J24 -> 29 | Q39: -34 | R39: -0.5396825397
A40: 18. | B40: wąbrzeski | C40: =Arkusz1!C25 -> 947 | D40: =Arkusz1!D25 -> 683 | E40: -264 | F40: -0.2787750792 | G40: =Arkusz1!E25 -> 123 | H40: =Arkusz1!F25 -> 101 | I40: -22 | J40: -0.1788617886 | K40: =Arkusz1!G25 -> 797 | L40: =Arkusz1!H25 -> 552 | M40: -245 | N40: -0.3074027604 | O40: =Arkusz1!I25 -> 27 | P40: =Arkusz1!J25 -> 30 | Q40: 3 | R40: 0.1111111111
A41: 19. | B41: włocławski | C41: =Arkusz1!C26+Arkusz1!C27 -> 3475 | D41: =Arkusz1!D26+Arkusz1!D27 -> 2767 | E41: -708 | F41: -0.2037410072 | G41: =Arkusz1!E26+Arkusz1!E27 -> 697 | H41: =Arkusz1!F26+Arkusz1!F27 -> 610 | I41: -87 | J41: -0.12482066 | K41: =Arkusz1!G26+Arkusz1!G27 -> 2511 | L41: =Arkusz1!H26+Arkusz1!H27 -> 1909 | M41: -602 | N41: -0.2397451215 | O41: =Arkusz1!I26+Arkusz1!I27 -> 267 | P41: =Arkusz1!J26+Arkusz1!J27 -> 248 | Q41: -19 | R41: -0.07116104869
A42: 20. | B42: żniński | C42: =Arkusz1!C28 -> 1815 | D42: =Arkusz1!D28 -> 1374 | E42: -441 | F42: -0.2429752066 | G42: =Arkusz1!E28 -> 231 | H42: =Arkusz1!F28 -> 180 | I42: -51 | J42: -0.2207792208 | K42: =Arkusz1!G28 -> 1449 | L42: =Arkusz1!H28 -> 1099 | M42: -350 | N42: -0.2415458937 | O42: =Arkusz1!I28 -> 135 | P42: =Arkusz1!J28 -> 95 | Q42: -40 | R42: -0.2962962963

Sheet 1a. Zdarzenia wg rodzaju (hidden)
A1: LP. | B1: Podział administracyjny | C1: Ogółem zdarzeń | D1: Pożary | F1: Miejscowe zagrożenia | H1: Alarmy fałszywe
D2: interwencji | E2: % | F2: interwencji | G2: % | H2: interwencji | I2: %
A3: 1. | B3: KUIAWSKO-POMORSKIE | C3: =SUM(C4:C22) -> 0 | D3: =SUM(D4:D22) -> 67300 | E3: =SUM(D3/C3) ->  | F3: =SUM(F4:F22) -> 37962 | G3: =SUM(F3/C3) ->  | H3: =SUM(H4:H22) -> 0 | I3: =SUM(H3/C3) -> 
A4: 2. | B4: aleksandrowski | C4: =Arkusz1!R5 -> 0 | D4: =Arkusz1!C5 -> 37660 | E4: =SUM(D4/C4) ->  | F4: =Arkusz1!H5 -> 20893 | G4: =SUM(F4/C4) ->  | H4: =Arkusz1!N5 -> 0 | I4: =SUM(H4/C4) -> 
A5: 3. | B5: brodnicki | C5: =Arkusz1!R6 -> 0 | D5: =Arkusz1!C6 -> 1193 | E5: =SUM(D5/C5) ->  | F5: =Arkusz1!H6 -> 474 | G5: =SUM(F5/C5) ->  | H5: =Arkusz1!N6 -> 0 | I5: =SUM(H5/C5) -> 
A6: 4. | B6: bydgoski | C6: =Arkusz1!R7 -> 0 | D6: =Arkusz1!C7 -> 1534 | F6: =Arkusz1!H7 -> 816 | H6: =Arkusz1!N7 -> 0
A7: 5. | B7: chełmiński | C7: =Arkusz1!R8 -> 0 | D7: =Arkusz1!C8 -> 2216 | F7: =Arkusz1!H8 -> 1153 | H7: =Arkusz1!N8 -> 0
A8: 6. | B8: golubsko-dobrzyński | C8: =Arkusz1!R9 -> 0 | D8: =Arkusz1!C9 -> 3495 | F8: =Arkusz1!H9 -> 1655 | H8: =Arkusz1!N9 -> 0
A9: 7. | B9: grudziądzki | C9: =Arkusz1!R10 -> 0 | D9: =Arkusz1!C10 -> 1212 | F9: =Arkusz1!H10 -> 630 | H9: =Arkusz1!N10 -> 0
A10: 8. | B10: inowrocławski | C10: =Arkusz1!R11 -> 0 | D10: =Arkusz1!C11 -> 1059 | F10: =Arkusz1!H11 -> 626 | H10: =Arkusz1!N11 -> 0
A11: 9. | B11: lipnowski | C11: =Arkusz1!R12 -> 0 | D11: =Arkusz1!C12 -> 1403 | F11: =Arkusz1!H12 -> 907 | H11: =Arkusz1!N12 -> 0
A12: 10. | B12: mogileński | C12: =Arkusz1!R13 -> 0 | D12: =Arkusz1!C13 -> 1415 | F12: =Arkusz1!H13 -> 878 | H12: =Arkusz1!N13 -> 0
A13: 11. | B13: nakielski | C13: =Arkusz1!R14 -> 0 | D13: =Arkusz1!C14 -> 2606 | F13: =Arkusz1!H14 -> 1269 | H13: =Arkusz1!N14 -> 0
A14: 12. | B14: radziejowski | C14: =Arkusz1!R15 -> 0 | D14: =Arkusz1!C15 -> 1301 | F14: =Arkusz1!H15 -> 857 | H14: =Arkusz1!N15 -> 0
A15: 13. | B15: rypiński | C15: =Arkusz1!R16 -> 0 | D15: =Arkusz1!C16 -> 1114 | F15: =Arkusz1!H16 -> 646 | H15: =Arkusz1!N16 -> 0
A16: 14. | B16: sępoleński | C16: =Arkusz1!R17 -> 0 | D16: =Arkusz1!C17 -> 1608 | F16: =Arkusz1!H17 -> 1049 | H16: =Arkusz1!N17 -> 0
A17: 15. | B17: świecki | C17: =Arkusz1!R18 -> 0 | D17: =Arkusz1!C18 -> 1015 | F17: =Arkusz1!H18 -> 725 | H17: =Arkusz1!N18 -> 0
A18: 16. | B18: toruński | C18: =Arkusz1!R4 -> 0 | D18: =Arkusz1!C4 -> 2022 | F18: =Arkusz1!H4 -> 2023 | H18: =Arkusz1!N4 -> 0
A19: 17. | B19: tucholski | C19: =Arkusz1!R$19 -> 0 | D19: =Arkusz1!C19 -> 940 | F19: =Arkusz1!H19 -> 684 | H19: =Arkusz1!N19 -> 0
A20: 18. | B20: wąbrzeski | C20: =Arkusz1!R20 -> 0 | D20: =Arkusz1!C20 -> 937 | F20: =Arkusz1!H20 -> 604 | H20: =Arkusz1!N20 -> 0
A21: 19. | B21: włocławski | C21: =Arkusz1!R21 -> 0 | D21: =Arkusz1!C21 -> 1869 | F21: =Arkusz1!H21 -> 961 | H21: =Arkusz1!N21 -> 0
A22: 20. | B22: żniński | C22: =Arkusz1!R22 -> 0 | D22: =Arkusz1!C22 -> 2701 | E22: =SUM(D22/C22) ->  | F22: =Arkusz1!H22 -> 1112 | G22: =SUM(F22/C22) ->  | H22: =Arkusz1!N22 -> 0 | I22: =SUM(H22/C22) -> 
B24: Sporządził: | C24: =INDEX(SKKW!A1:A9,SKKW!B1,1) -> st. kpt. Krzysztof Kuczborski
B25: Za okres:

Sheet SKKW (hidden)
A1: bryg. Piotr Bełcikowski | B1: 7
A2: bryg. Mariusz Kwiatkowski
A3: mł. bryg. Krzysztof Rutkowski
A4: mł. bryg. Krzysztof Arent
A5: mł. bryg. Jarosław Rębowski
A6: st. kpt. Leszek Baniecki
A7: st. kpt. Krzysztof Kuczborski
A8: st. kpt. Marcin Świtała
A9: mł. kpt. Jarosław Cechowski
A10: st. asp. Rafał Kułakowski
A11: mł. asp. Lucjan Nowosielski
A12: ogn. Marcin Guranowski
